[Event "Titled Tuesday Blitz July 27 2021"]
[White "Petukhov, Dmitry"]
[Black "Vokhidov, Shamsiddin"]
[WhiteFideId "4142748"]
[BlackFideId "14204223"]
[WhiteElo "2356"]
[BlackElo "2572"]
[Result "0-1"]
[Round "01"]
[TimeControl "180+1"]
[Date "2021.07.27"]
[WhiteClock "0:00:01"]
[BlackClock "0:01:09"]

1. e4 {[%clk 0:02:57]}  c5 {[%clk 0:03:00]} 2. c3 {[%clk 0:02:56]}  e5 {[%clk 0:02:59]} 3. d4 {[%clk 0:02:55]}  exd4 {[%clk 0:03:00]} 4. cxd4 {[%clk 0:02:56]}  cxd4 {[%clk 0:03:01]} 5. Nf3 {[%clk 0:02:55]}  Nc6 {[%clk 0:03:01]} 6. Bc4 {[%clk 0:02:55]}  Nf6 {[%clk 0:03:00]} 7. O-O {[%clk 0:02:54]}  Nxe4 {[%clk 0:02:58]} 8. Re1 {[%clk 0:02:53]}  d5 {[%clk 0:02:58]} 9. Nxd4 {[%clk 0:02:53]}  Be7 {[%clk 0:02:48]} 10. Bb5 {[%clk 0:02:24]}  Bd7 {[%clk 0:02:43]} 11. Nf3 {[%clk 0:01:59]}  Qb6 {[%clk 0:02:33]} 12. Qxd5 {[%clk 0:01:57]}  Nf6 {[%clk 0:02:15]} 13. Qb3 {[%clk 0:01:44]}  Be6 {[%clk 0:02:09]} 14. Rxe6 {[%clk 0:01:29]}  fxe6 {[%clk 0:02:09]} 15. Be3 {[%clk 0:01:26]}  Qd8 {[%clk 0:02:02]} 16. Qxe6 {[%clk 0:01:24]}  Qd5 {[%clk 0:02:01]} 17. Ng5 {[%clk 0:01:09]}  Qxb5 {[%clk 0:01:20]} 18. Qf7+ {[%clk 0:01:06]}  Kd7 {[%clk 0:01:20]} 19. Nc3 {[%clk 0:01:06]}  Qf5 {[%clk 0:01:17]} 20. Rd1+ {[%clk 0:00:56]}  Kc8 {[%clk 0:01:17]} 21. Nd5 {[%clk 0:00:50]}  Rd8 {[%clk 0:01:10]} 22. Nxe7+ {[%clk 0:00:01]}  Nxe7 {[%clk 0:01:09]} 0-1


[Site "https://www.chess.com"]

[Event "Titled Tuesday Blitz July 27 2021"]
[White "Pinheiro, Iung Alicio de O."]
[Black "Andreikin, Dmitry"]
[WhiteFideId "2104350"]
[BlackFideId "4158814"]
[WhiteElo "2453"]
[BlackElo "2782"]
[Result "1/2-1/2"]
[Round "01"]
[TimeControl "180+1"]
[Date "2021.07.27"]
[WhiteClock "0:00:34"]
[BlackClock "0:00:05"]

1. e4 {[%clk 0:03:00]}  c5 {[%clk 0:02:59]} 2. Nc3 {[%clk 0:02:58]}  a6 {[%clk 0:02:58]} 3. d4 {[%clk 0:02:58]}  cxd4 {[%clk 0:02:58]} 4. Qxd4 {[%clk 0:02:59]}  Nc6 {[%clk 0:02:59]} 5. Qe3 {[%clk 0:02:59]}  Nf6 {[%clk 0:02:55]} 6. b3 {[%clk 0:02:58]}  d5 {[%clk 0:02:49]} 7. exd5 {[%clk 0:02:50]}  Nb4 {[%clk 0:02:48]} 8. Bd3 {[%clk 0:02:25]}  Nfxd5 {[%clk 0:02:48]} 9. Nxd5 {[%clk 0:02:25]}  Qxd5 {[%clk 0:02:48]} 10. Nf3 {[%clk 0:02:25]}  Qxd3 {[%clk 0:02:41]} 11. cxd3 {[%clk 0:02:20]}  Nc2+ {[%clk 0:02:41]} 12. Ke2 {[%clk 0:02:20]}  Nxe3 {[%clk 0:02:41]} 13. fxe3 {[%clk 0:02:20]}  f6 {[%clk 0:02:35]} 14. Ba3 {[%clk 0:02:18]}  Bg4 {[%clk 0:02:22]} 15. Rac1 {[%clk 0:02:15]}  Kd7 {[%clk 0:02:22]} 16. Rc4 {[%clk 0:02:14]}  Be6 {[%clk 0:02:11]} 17. Rc2 {[%clk 0:02:03]}  Rc8 {[%clk 0:02:09]} 18. Rhc1 {[%clk 0:02:03]}  Rxc2+ {[%clk 0:02:08]} 19. Rxc2 {[%clk 0:02:04]}  Bf7 {[%clk 0:02:04]} 20. e4 {[%clk 0:01:59]}  e5 {[%clk 0:02:03]} 21. Bxf8 {[%clk 0:01:58]}  Rxf8 {[%clk 0:02:03]} 22. Ke3 {[%clk 0:01:56]}  a5 {[%clk 0:01:57]} 23. d4 {[%clk 0:01:54]}  exd4+ {[%clk 0:01:54]} 24. Nxd4 {[%clk 0:01:52]}  Re8 {[%clk 0:01:47]} 25. Kf4 {[%clk 0:01:32]}  Re5 {[%clk 0:01:30]} 26. h4 {[%clk 0:01:25]}  h5 {[%clk 0:01:22]} 27. Rd2 {[%clk 0:01:23]}  Kc7 {[%clk 0:01:20]} 28. Nf3 {[%clk 0:01:20]}  Rc5 {[%clk 0:01:19]} 29. e5 {[%clk 0:01:18]}  b5 {[%clk 0:01:14]} 30. exf6 {[%clk 0:01:18]}  gxf6 {[%clk 0:01:15]} 31. Nd4 {[%clk 0:01:10]}  b4 {[%clk 0:01:09]} 32. Nf5 {[%clk 0:00:59]}  Be6 {[%clk 0:01:01]} 33. Nd6 {[%clk 0:00:55]}  Kc6 {[%clk 0:00:55]} 34. Ne4 {[%clk 0:00:54]}  Rf5+ {[%clk 0:00:54]} 35. Ke3 {[%clk 0:00:54]}  Bd5 {[%clk 0:00:52]} 36. Rc2+ {[%clk 0:00:52]}  Kb6 {[%clk 0:00:52]} 37. Nd6 {[%clk 0:00:51]}  Re5+ {[%clk 0:00:47]} 38. Kd4 {[%clk 0:00:51]}  Ka6 {[%clk 0:00:38]} 39. Rf2 {[%clk 0:00:44]}  Ba8 {[%clk 0:00:26]} 40. Rxf6 {[%clk 0:00:42]}  Re2 {[%clk 0:00:25]} 41. Nc4+ {[%clk 0:00:40]}  Ka7 {[%clk 0:00:25]} 42. Rf7+ {[%clk 0:00:38]}  Ka6 {[%clk 0:00:24]} 43. Rf6+ {[%clk 0:00:38]}  Ka7 {[%clk 0:00:24]} 44. Nxa5 {[%clk 0:00:28]}  Rxa2 {[%clk 0:00:16]} 45. Rf7+ {[%clk 0:00:28]}  Ka6 {[%clk 0:00:15]} 46. Nc4 {[%clk 0:00:29]}  Rxg2 {[%clk 0:00:14]} 47. Kc5 {[%clk 0:00:29]}  Rg4 {[%clk 0:00:11]} 48. Rf6+ {[%clk 0:00:30]}  Ka7 {[%clk 0:00:11]} 49. Nd6 {[%clk 0:00:29]}  Rxh4 {[%clk 0:00:10]} 50. Rf7+ {[%clk 0:00:29]}  Ka6 {[%clk 0:00:08]} 51. Nc8 {[%clk 0:00:25]}  Bb7 {[%clk 0:00:07]} 52. Nd6 {[%clk 0:00:25]}  Ba8 {[%clk 0:00:06]} 53. Nb5 {[%clk 0:00:25]}  Bb7 {[%clk 0:00:06]} 54. Nc7+ {[%clk 0:00:25]}  Ka7 {[%clk 0:00:04]} 55. Ne6 {[%clk 0:00:25]}  Rh1 {[%clk 0:00:03]} 56. Nd8 {[%clk 0:00:25]}  Rc1+ {[%clk 0:00:03]} 57. Kxb4 {[%clk 0:00:25]}  Ka6 {[%clk 0:00:03]} 58. Nxb7 {[%clk 0:00:25]}  Kb6 {[%clk 0:00:02]} 59. Nd6 {[%clk 0:00:25]}  Kc6 {[%clk 0:00:03]} 60. Nc4 {[%clk 0:00:25]}  h4 {[%clk 0:00:02]} 61. Rh7 {[%clk 0:00:26]}  Rh1 {[%clk 0:00:02]} 62. Rh6+ {[%clk 0:00:27]}  Kd5 {[%clk 0:00:02]} 63. Kb5 {[%clk 0:00:28]}  h3 {[%clk 0:00:02]} 64. Nb6+ {[%clk 0:00:29]}  Ke4 {[%clk 0:00:02]} 65. b4 {[%clk 0:00:30]}  h2 {[%clk 0:00:02]} 66. Nc4 {[%clk 0:00:30]}  Kf3 {[%clk 0:00:02]} 67. Ne5+ {[%clk 0:00:31]}  Kg3 {[%clk 0:00:03]} 68. Rh8 {[%clk 0:00:30]}  Re1 {[%clk 0:00:03]} 69. Rg8+ {[%clk 0:00:31]}  Kf4 {[%clk 0:00:02]} 70. Nd3+ {[%clk 0:00:31]}  Kf5 {[%clk 0:00:02]} 71. Rf8+ {[%clk 0:00:31]}  Kg6 {[%clk 0:00:02]} 72. Rh8 {[%clk 0:00:30]}  h1=Q {[%clk 0:00:02]} 73. Nf4+ {[%clk 0:00:31]}  Kg5 {[%clk 0:00:02]} 74. Rxh1 {[%clk 0:00:32]}  Rxh1 {[%clk 0:00:02]} 75. Ne6+ {[%clk 0:00:33]}  Kf6 {[%clk 0:00:02]} 76. Nc5 {[%clk 0:00:33]}  Rh5 {[%clk 0:00:03]} 77. Kc6 {[%clk 0:00:34]}  Ke7 {[%clk 0:00:03]} 78. b5 {[%clk 0:00:35]}  Rh6+ {[%clk 0:00:04]} 79. Kc7 {[%clk 0:00:35]}  Rh5 {[%clk 0:00:04]} 80. Kc6 {[%clk 0:00:35]}  Rh6+ {[%clk 0:00:05]} 81. Kc7 {[%clk 0:00:34]}  Rh5 {[%clk 0:00:05]} 82. Kc6 {[%clk 0:00:34]} 1/2-1/2


[Site "https://www.chess.com"]

[Event "Titled Tuesday Blitz July 27 2021"]
[White "Sliwicki, Damian"]
[Black "Sanal, Vahap"]
[WhiteFideId "1127128"]
[BlackFideId "6300545"]
[WhiteElo "2149"]
[BlackElo "2495"]
[Result "0-1"]
[Round "01"]
[TimeControl "180+1"]
[Date "2021.07.27"]
[WhiteClock "0:00:40"]
[BlackClock "0:02:13"]

1. e4 {[%clk 0:02:42]}  c5 {[%clk 0:02:55]} 2. Nf3 {[%clk 0:02:40]}  e6 {[%clk 0:02:55]} 3. d4 {[%clk 0:02:39]}  cxd4 {[%clk 0:02:55]} 4. Nxd4 {[%clk 0:02:40]}  a6 {[%clk 0:02:56]} 5. Nc3 {[%clk 0:02:40]}  d6 {[%clk 0:02:55]} 6. Bd3 {[%clk 0:02:36]}  Nf6 {[%clk 0:02:52]} 7. O-O {[%clk 0:02:35]}  b5 {[%clk 0:02:52]} 8. a3 {[%clk 0:02:32]}  Bb7 {[%clk 0:02:52]} 9. f4 {[%clk 0:02:30]}  Nbd7 {[%clk 0:02:48]} 10. Qf3 {[%clk 0:02:14]}  Be7 {[%clk 0:02:47]} 11. Qh3 {[%clk 0:02:11]}  Nc5 {[%clk 0:02:37]} 12. e5 {[%clk 0:02:06]}  dxe5 {[%clk 0:02:36]} 13. Ndxb5 {[%clk 0:01:19]}  Nxd3 {[%clk 0:02:33]} 14. cxd3 {[%clk 0:01:10]}  axb5 {[%clk 0:02:33]} 15. fxe5 {[%clk 0:01:10]}  Qd4+ {[%clk 0:02:32]} 16. Be3 {[%clk 0:00:53]}  Qxe5 {[%clk 0:02:30]} 17. Rae1 {[%clk 0:00:53]}  O-O {[%clk 0:02:26]} 18. Kh1 {[%clk 0:00:52]}  Qh5 {[%clk 0:02:22]} 19. Qg3 {[%clk 0:00:49]}  Qg6 {[%clk 0:02:21]} 20. Qh3 {[%clk 0:00:49]}  b4 {[%clk 0:02:18]} 21. Ne2 {[%clk 0:00:44]}  bxa3 {[%clk 0:02:13]} 22. bxa3 {[%clk 0:00:42]}  Rxa3 {[%clk 0:02:14]} 23. Nf4 {[%clk 0:00:40]}  Qg4 {[%clk 0:02:13]} 0-1


[Site "https://www.chess.com"]

[Event "Titled Tuesday Blitz July 27 2021"]
[White "Tokman, Ariel"]
[Black "Sadhwani, Raunak"]
[WhiteFideId "117420"]
[BlackFideId "35093487"]
[WhiteElo "2345"]
[BlackElo "2514"]
[Result "0-1"]
[Round "01"]
[TimeControl "180+1"]
[Date "2021.07.27"]
[WhiteClock "0:00:02"]
[BlackClock "0:00:57"]

1. c4 {[%clk 0:02:58]}  g6 {[%clk 0:02:59]} 2. Nc3 {[%clk 0:02:54]}  c5 {[%clk 0:02:59]} 3. g3 {[%clk 0:02:55]}  Bg7 {[%clk 0:02:58]} 4. Bg2 {[%clk 0:02:55]}  Nc6 {[%clk 0:02:59]} 5. e4 {[%clk 0:02:55]}  h5 {[%clk 0:02:59]} 6. h3 {[%clk 0:02:54]}  d6 {[%clk 0:02:56]} 7. Nge2 {[%clk 0:02:54]}  a6 {[%clk 0:02:47]} 8. d3 {[%clk 0:02:54]}  Rb8 {[%clk 0:02:48]} 9. a4 {[%clk 0:02:53]}  e5 {[%clk 0:02:45]} 10. O-O {[%clk 0:02:47]}  Nge7 {[%clk 0:02:45]} 11. Bg5 {[%clk 0:02:15]}  f6 {[%clk 0:02:27]} 12. Be3 {[%clk 0:02:14]}  h4 {[%clk 0:02:27]} 13. g4 {[%clk 0:02:12]}  g5 {[%clk 0:02:26]} 14. Nd5 {[%clk 0:02:10]}  Nxd5 {[%clk 0:02:24]} 15. exd5 {[%clk 0:02:09]}  Ne7 {[%clk 0:02:25]} 16. Nc3 {[%clk 0:02:07]}  O-O {[%clk 0:02:21]} 17. Ne4 {[%clk 0:02:07]}  b5 {[%clk 0:02:18]} 18. axb5 {[%clk 0:02:07]}  axb5 {[%clk 0:02:19]} 19. Qb3 {[%clk 0:01:49]}  Rb6 {[%clk 0:01:57]} 20. cxb5 {[%clk 0:01:44]}  Bd7 {[%clk 0:01:57]} 21. Ra7 {[%clk 0:01:29]}  Rxb5 {[%clk 0:01:42]} 22. Qa4 {[%clk 0:01:19]}  Nc8 {[%clk 0:01:36]} 23. Ra6 {[%clk 0:01:02]}  Rxb2 {[%clk 0:01:35]} 24. Qa3 {[%clk 0:01:01]}  Rb6 {[%clk 0:01:35]} 25. Nxd6 {[%clk 0:00:54]}  Rxd6 {[%clk 0:01:34]} 26. Bxc5 {[%clk 0:00:33]}  Rxa6 {[%clk 0:01:33]} 27. Qxa6 {[%clk 0:00:34]}  Re8 {[%clk 0:01:31]} 28. Rb1 {[%clk 0:00:31]}  Bf8 {[%clk 0:01:29]} 29. d6 {[%clk 0:00:29]}  Nxd6 {[%clk 0:00:57]} 30. Bxd6 {[%clk 0:00:24]}  Bc8 {[%clk 0:00:57]} 31. Qa2+ {[%clk 0:00:12]}  Be6 {[%clk 0:00:57]} 32. Bd5 {[%clk 0:00:02]}  Qxd6 {[%clk 0:00:57]} 0-1


[Site "https://www.chess.com"]

[Event "Titled Tuesday Blitz July 27 2021"]
[White "Urquhart, Ed"]
[Black "Martinez Alcantara, Jose Eduardo"]
[WhiteFideId "2603748"]
[BlackFideId "3805662"]
[WhiteElo "2184"]
[BlackElo "2690"]
[Result "0-1"]
[Round "01"]
[TimeControl "180+1"]
[Date "2021.07.27"]
[WhiteClock "0:00:17"]
[BlackClock "0:00:25"]

1. e4 {[%clk 0:03:00]}  c5 {[%clk 0:02:58]} 2. Nc3 {[%clk 0:02:59]}  d6 {[%clk 0:02:58]} 3. f4 {[%clk 0:02:59]}  g6 {[%clk 0:02:57]} 4. Nf3 {[%clk 0:02:59]}  Bg7 {[%clk 0:02:57]} 5. Bc4 {[%clk 0:02:59]}  Nc6 {[%clk 0:02:50]} 6. d3 {[%clk 0:02:58]}  e6 {[%clk 0:02:49]} 7. O-O {[%clk 0:02:58]}  Nge7 {[%clk 0:02:49]} 8. Qe1 {[%clk 0:02:59]}  O-O {[%clk 0:02:38]} 9. f5 {[%clk 0:02:58]}  d5 {[%clk 0:02:34]} 10. Bb3 {[%clk 0:02:58]}  exf5 {[%clk 0:02:05]} 11. exd5 {[%clk 0:02:43]}  Nd4 {[%clk 0:01:54]} 12. Qh4 {[%clk 0:02:43]}  Nxb3 {[%clk 0:01:47]} 13. axb3 {[%clk 0:02:39]}  Nxd5 {[%clk 0:01:39]} 14. Bg5 {[%clk 0:02:38]}  f6 {[%clk 0:01:38]} 15. Bh6 {[%clk 0:02:30]}  Be6 {[%clk 0:01:25]} 16. Rfe1 {[%clk 0:02:23]}  Bf7 {[%clk 0:01:25]} 17. Bxg7 {[%clk 0:02:18]}  Kxg7 {[%clk 0:01:23]} 18. Qg3 {[%clk 0:02:04]}  Nb4 {[%clk 0:01:17]} 19. Re2 {[%clk 0:01:59]}  Re8 {[%clk 0:01:16]} 20. Rae1 {[%clk 0:01:58]}  Rxe2 {[%clk 0:01:16]} 21. Rxe2 {[%clk 0:01:59]}  Qb8 {[%clk 0:01:10]} 22. Qf2 {[%clk 0:01:55]}  Qd6 {[%clk 0:01:10]} 23. Nb5 {[%clk 0:01:32]}  Qc6 {[%clk 0:01:05]} 24. Na3 {[%clk 0:01:26]}  b5 {[%clk 0:01:02]} 25. Re7 {[%clk 0:01:22]}  Nd5 {[%clk 0:00:57]} 26. Re2 {[%clk 0:01:16]}  a6 {[%clk 0:00:55]} 27. Nb1 {[%clk 0:01:15]}  Re8 {[%clk 0:00:54]} 28. Nc3 {[%clk 0:01:14]}  Rxe2 {[%clk 0:00:52]} 29. Qxe2 {[%clk 0:01:15]}  Nxc3 {[%clk 0:00:52]} 30. bxc3 {[%clk 0:01:16]}  Qd6 {[%clk 0:00:52]} 31. c4 {[%clk 0:01:09]}  g5 {[%clk 0:00:45]} 32. cxb5 {[%clk 0:01:06]}  axb5 {[%clk 0:00:45]} 33. h3 {[%clk 0:01:06]}  h5 {[%clk 0:00:43]} 34. Qe3 {[%clk 0:01:04]}  f4 {[%clk 0:00:38]} 35. Qe4 {[%clk 0:00:59]}  Qe6 {[%clk 0:00:33]} 36. Qb7 {[%clk 0:00:55]}  b4 {[%clk 0:00:29]} 37. Qc7 {[%clk 0:00:52]}  Qe3+ {[%clk 0:00:27]} 38. Kh2 {[%clk 0:00:50]}  Kg6 {[%clk 0:00:26]} 39. Qc8 {[%clk 0:00:44]}  Kg7 {[%clk 0:00:24]} 40. Qc7 {[%clk 0:00:34]}  g4 {[%clk 0:00:23]} 41. hxg4 {[%clk 0:00:24]}  hxg4 {[%clk 0:00:24]} 42. Ng1 {[%clk 0:00:16]}  Qg3+ {[%clk 0:00:24]} 43. Kh1 {[%clk 0:00:17]}  Qh4+ {[%clk 0:00:25]} 44. Nh3 {[%clk 0:00:17]}  gxh3 {[%clk 0:00:25]} 0-1


[Site "https://www.chess.com"]

[Event "Titled Tuesday Blitz July 27 2021"]
[White "Zhigalko, Sergei"]
[Black "Chen, Max"]
[WhiteFideId "13502956"]
[BlackFideId "2622440"]
[WhiteElo "2662"]
[BlackElo "2440"]
[Result "1-0"]
[Round "01"]
[TimeControl "180+1"]
[Date "2021.07.27"]
[WhiteClock "0:01:21"]
[BlackClock "0:00:04"]

1. e4 {[%clk 0:03:00]}  c5 {[%clk 0:02:57]} 2. Nf3 {[%clk 0:03:01]}  d6 {[%clk 0:02:45]} 3. d4 {[%clk 0:03:00]}  cxd4 {[%clk 0:02:44]} 4. Qxd4 {[%clk 0:03:01]}  Nf6 {[%clk 0:02:44]} 5. Nc3 {[%clk 0:03:01]}  Nc6 {[%clk 0:02:44]} 6. Bb5 {[%clk 0:03:01]}  Bd7 {[%clk 0:02:43]} 7. Bxc6 {[%clk 0:03:02]}  Bxc6 {[%clk 0:02:44]} 8. Bg5 {[%clk 0:03:02]}  e6 {[%clk 0:02:32]} 9. O-O-O {[%clk 0:03:02]}  Be7 {[%clk 0:02:31]} 10. Rhe1 {[%clk 0:03:01]}  Qc7 {[%clk 0:02:29]} 11. Kb1 {[%clk 0:03:01]}  O-O {[%clk 0:02:24]} 12. Qd2 {[%clk 0:03:02]}  b5 {[%clk 0:02:21]} 13. Nd4 {[%clk 0:03:02]}  b4 {[%clk 0:02:17]} 14. Ncb5 {[%clk 0:03:02]}  Bxb5 {[%clk 0:01:33]} 15. Nxb5 {[%clk 0:03:01]}  Qc5 {[%clk 0:01:33]} 16. Nxd6 {[%clk 0:02:24]}  Bxd6 {[%clk 0:00:51]} 17. Bxf6 {[%clk 0:02:22]}  gxf6 {[%clk 0:00:43]} 18. Qxd6 {[%clk 0:02:22]}  Qxf2 {[%clk 0:00:40]} 19. Rf1 {[%clk 0:02:22]}  Qe2 {[%clk 0:00:36]} 20. Qg3+ {[%clk 0:01:39]}  Kh8 {[%clk 0:00:36]} 21. Qf4 {[%clk 0:01:40]}  Rac8 {[%clk 0:00:23]} 22. Rd2 {[%clk 0:01:27]}  Qc4 {[%clk 0:00:04]} 23. Qxf6+ {[%clk 0:01:27]}  Kg8 {[%clk 0:00:04]} 24. Rf3 {[%clk 0:01:21]} 1-0


[Site "https://www.chess.com"]

[Event "Titled Tuesday Blitz July 27 2021"]
[White "Amburgy, Ryan"]
[Black "Ahmadzada, Ahmad"]
[WhiteFideId "30924820"]
[BlackFideId "13413007"]
[WhiteElo "2066"]
[BlackElo "2226"]
[Result "0-1"]
[Round "02"]
[TimeControl "180+1"]
[Date "2021.07.27"]
[WhiteClock "0:00:01"]
[BlackClock "0:00:16"]

1. d4 {[%clk 0:03:00]}  Nf6 {[%clk 0:02:59]} 2. Nc3 {[%clk 0:03:00]}  d5 {[%clk 0:02:57]} 3. Bf4 {[%clk 0:03:01]}  c5 {[%clk 0:02:56]} 4. e3 {[%clk 0:03:01]}  cxd4 {[%clk 0:02:56]} 5. exd4 {[%clk 0:03:02]}  a6 {[%clk 0:02:57]} 6. Bd3 {[%clk 0:03:03]}  Nc6 {[%clk 0:02:57]} 7. Nce2 {[%clk 0:03:03]}  Bg4 {[%clk 0:02:55]} 8. c3 {[%clk 0:03:04]}  e6 {[%clk 0:02:55]} 9. Qd2 {[%clk 0:03:04]}  Bd6 {[%clk 0:02:54]} 10. h3 {[%clk 0:03:01]}  Bh5 {[%clk 0:02:53]} 11. Bxd6 {[%clk 0:03:01]}  Qxd6 {[%clk 0:02:53]} 12. Nf4 {[%clk 0:03:02]}  Bg6 {[%clk 0:02:52]} 13. Nxg6 {[%clk 0:03:03]}  hxg6 {[%clk 0:02:53]} 14. Nf3 {[%clk 0:03:01]}  b5 {[%clk 0:02:49]} 15. O-O {[%clk 0:02:56]}  O-O {[%clk 0:02:47]} 16. Rfe1 {[%clk 0:02:56]}  Rfc8 {[%clk 0:02:39]} 17. Ne5 {[%clk 0:02:39]}  Nd7 {[%clk 0:02:18]} 18. f4 {[%clk 0:02:26]}  b4 {[%clk 0:01:51]} 19. Qe3 {[%clk 0:01:58]}  bxc3 {[%clk 0:01:39]} 20. bxc3 {[%clk 0:01:58]}  Ncxe5 {[%clk 0:01:35]} 21. fxe5 {[%clk 0:01:59]}  Qa3 {[%clk 0:01:35]} 22. Rf1 {[%clk 0:01:09]}  Rxc3 {[%clk 0:01:33]} 23. Qf4 {[%clk 0:01:09]}  Rf8 {[%clk 0:01:26]} 24. Be2 {[%clk 0:01:08]}  Rc2 {[%clk 0:01:13]} 25. Qf3 {[%clk 0:00:56]}  Qb2 {[%clk 0:01:07]} 26. Bxa6 {[%clk 0:00:43]}  Qxd4+ {[%clk 0:01:06]} 27. Kh1 {[%clk 0:00:44]}  Nxe5 {[%clk 0:01:06]} 28. Qg3 {[%clk 0:00:43]}  Rc3 {[%clk 0:01:00]} 29. Qf2 {[%clk 0:00:31]}  Qxf2 {[%clk 0:00:59]} 30. Rxf2 {[%clk 0:00:32]}  Ra3 {[%clk 0:00:59]} 31. Bb5 {[%clk 0:00:30]}  Rb8 {[%clk 0:00:58]} 32. Bf1 {[%clk 0:00:31]}  Nc6 {[%clk 0:00:51]} 33. Rc1 {[%clk 0:00:25]}  Ne5 {[%clk 0:00:38]} 34. Rcc2 {[%clk 0:00:18]}  g5 {[%clk 0:00:32]} 35. Rce2 {[%clk 0:00:05]}  Ng6 {[%clk 0:00:25]} 36. Rc2 {[%clk 0:00:03]}  Ne5 {[%clk 0:00:22]} 37. Rce2 {[%clk 0:00:03]}  Nd7 {[%clk 0:00:18]} 38. Rc2 {[%clk 0:00:04]}  Nf6 {[%clk 0:00:18]} 39. Kh2 {[%clk 0:00:02]}  g4 {[%clk 0:00:18]} 40. Kg1 {[%clk 0:00:01]}  g3 {[%clk 0:00:17]} 41. Rfd2 {[%clk 0:00:01]}  Rb1 {[%clk 0:00:17]} 42. Re2 {[%clk 0:00:01]}  Ne4 {[%clk 0:00:16]} 0-1


[Site "https://www.chess.com"]

[Event "Titled Tuesday Blitz July 27 2021"]
[White "Bazeev, German"]
[Black "Agibileg, Uurtsaikh"]
[WhiteFideId "24119350"]
[BlackFideId "4901606"]
[WhiteElo "2462"]
[BlackElo "2117"]
[Result "1-0"]
[Round "02"]
[TimeControl "180+1"]
[Date "2021.07.27"]
[WhiteClock "0:00:35"]
[BlackClock "0:00:03"]

1. d4 {[%clk 0:03:00]}  Nf6 {[%clk 0:02:59]} 2. Bg5 {[%clk 0:02:59]}  g6 {[%clk 0:02:56]} 3. Bxf6 {[%clk 0:02:59]}  exf6 {[%clk 0:02:57]} 4. g3 {[%clk 0:03:00]}  Bg7 {[%clk 0:02:57]} 5. Bg2 {[%clk 0:03:00]}  O-O {[%clk 0:02:57]} 6. c4 {[%clk 0:02:59]}  f5 {[%clk 0:02:55]} 7. e3 {[%clk 0:02:58]}  c5 {[%clk 0:02:53]} 8. Ne2 {[%clk 0:02:57]}  Nc6 {[%clk 0:02:54]} 9. O-O {[%clk 0:02:55]}  d6 {[%clk 0:02:51]} 10. Nbc3 {[%clk 0:02:50]}  Rb8 {[%clk 0:02:29]} 11. Qd2 {[%clk 0:02:32]}  Re8 {[%clk 0:02:06]} 12. Rfd1 {[%clk 0:02:11]}  cxd4 {[%clk 0:02:05]} 13. Nxd4 {[%clk 0:02:06]}  Nxd4 {[%clk 0:02:04]} 14. exd4 {[%clk 0:02:07]}  Be6 {[%clk 0:01:58]} 15. b3 {[%clk 0:02:07]}  Qb6 {[%clk 0:01:48]} 16. Bd5 {[%clk 0:01:59]}  Re7 {[%clk 0:01:41]} 17. Bxe6 {[%clk 0:01:53]}  fxe6 {[%clk 0:01:40]} 18. Qe3 {[%clk 0:01:39]}  a6 {[%clk 0:01:26]} 19. Nd5 {[%clk 0:01:37]}  Qd8 {[%clk 0:01:24]} 20. Nxe7+ {[%clk 0:01:36]}  Qxe7 {[%clk 0:01:25]} 21. Re1 {[%clk 0:01:35]}  Kf7 {[%clk 0:01:20]} 22. Rad1 {[%clk 0:01:35]}  b6 {[%clk 0:01:04]} 23. f4 {[%clk 0:01:30]}  Qd7 {[%clk 0:00:51]} 24. Kg2 {[%clk 0:01:26]}  b5 {[%clk 0:00:29]} 25. c5 {[%clk 0:01:18]}  Rc8 {[%clk 0:00:28]} 26. b4 {[%clk 0:01:18]}  d5 {[%clk 0:00:25]} 27. Re2 {[%clk 0:01:12]}  Rc6 {[%clk 0:00:24]} 28. a4 {[%clk 0:00:57]}  bxa4 {[%clk 0:00:21]} 29. Qa3 {[%clk 0:00:57]}  Qb7 {[%clk 0:00:16]} 30. Qxa4 {[%clk 0:00:56]}  h6 {[%clk 0:00:15]} 31. Rb2 {[%clk 0:00:55]}  g5 {[%clk 0:00:11]} 32. b5 {[%clk 0:00:51]}  axb5 {[%clk 0:00:06]} 33. Qxb5 {[%clk 0:00:44]}  Qxb5 {[%clk 0:00:06]} 34. Rxb5 {[%clk 0:00:45]}  Ra6 {[%clk 0:00:05]} 35. Rb7+ {[%clk 0:00:35]}  Kg6 {[%clk 0:00:03]} 36. Rb2 {[%clk 0:00:36]}  Kf7 {[%clk 0:00:02]} 37. Rc2 {[%clk 0:00:36]}  Kg6 {[%clk 0:00:02]} 38. c6 {[%clk 0:00:35]}  Ra8 {[%clk 0:00:03]} 39. c7 {[%clk 0:00:36]}  Rc8 {[%clk 0:00:03]} 40. Rb1 {[%clk 0:00:36]}  Bxd4 {[%clk 0:00:03]} 41. Rb8 {[%clk 0:00:35]} 1-0


[Site "https://www.chess.com"]

[Event "Titled Tuesday Blitz July 27 2021"]
[White "Dushyant Sharma"]
[Black "Indjic, Aleksandar"]
[WhiteFideId "25065130"]
[BlackFideId "911925"]
[WhiteElo "2019"]
[BlackElo "2643"]
[Result "0-1"]
[Round "02"]
[TimeControl "180+1"]
[Date "2021.07.27"]
[WhiteClock "0:02:17"]
[BlackClock "0:01:59"]

1. e4 {[%clk 0:03:00]}  c5 {[%clk 0:02:58]} 2. Nf3 {[%clk 0:03:00]}  e6 {[%clk 0:02:56]} 3. d4 {[%clk 0:03:01]}  cxd4 {[%clk 0:02:57]} 4. Nxd4 {[%clk 0:03:01]}  a6 {[%clk 0:02:57]} 5. Nc3 {[%clk 0:03:01]}  b5 {[%clk 0:02:51]} 6. a3 {[%clk 0:03:00]}  Bb7 {[%clk 0:02:51]} 7. f4 {[%clk 0:02:59]}  Nc6 {[%clk 0:02:49]} 8. Nxc6 {[%clk 0:02:57]}  Bxc6 {[%clk 0:02:49]} 9. Bd3 {[%clk 0:02:57]}  Nf6 {[%clk 0:02:48]} 10. O-O {[%clk 0:02:57]}  Bc5+ {[%clk 0:02:47]} 11. Kh1 {[%clk 0:02:57]}  h5 {[%clk 0:02:46]} 12. Qf3 {[%clk 0:02:56]}  Ng4 {[%clk 0:02:41]} 13. h3 {[%clk 0:02:54]}  Qh4 {[%clk 0:02:38]} 14. Bd2 {[%clk 0:02:48]}  f5 {[%clk 0:02:18]} 15. Be1 {[%clk 0:02:43]}  Qe7 {[%clk 0:02:13]} 16. b4 {[%clk 0:02:39]}  Bd4 {[%clk 0:02:08]} 17. Rb1 {[%clk 0:02:25]}  Nf6 {[%clk 0:02:01]} 18. Bh4 {[%clk 0:02:17]}  Bxc3 {[%clk 0:01:59]} 0-1


[Site "https://www.chess.com"]